fUSD/lending_fUSD_20240220
["ID","MTS","AMOUNT","RATE_DAILY","PERIOD"]
[314540653,1708411850650,-500.0,0.00036438,2]
[314540654,1708411850659,-500.0,0.00036438,2]
[314540655,1708411850669,-500.0,0.00036438,2]
[314540656,1708411850678,-500.0,0.00036438,2]
[314540657,1708411850689,-500.0,0.00036438,2]
[314540658,1708411850698,-500.0,0.00036438,2]
[314540659,1708411850708,-500.0,0.00036438,2]
[314540660,1708411850717,-500.0,0.00036438,2]
[314540661,1708411850727,-500.0,0.00036438,2]
[314540662,1708411850736,-500.0,0.00036438,2]
[314540663,1708411850746,-500.0,0.00036438,2]
[314540664,1708411850755,-500.0,0.00036438,2]
[314540665,1708411850765,-500.0,0.00036438,2]
[314540666,1708411850778,-548.6,0.00036438,2]
[314540667,1708411850788,-500.0,0.00036438,2]
[314540668,1708411850797,-500.0,0.00036438,2]
[314540669,1708411850808,-500.0,0.00036438,2]
[314540670,1708411850819,-500.0,0.00036438,2]
[314540671,1708411850828,-500.0,0.00036438,2]
[314540672,1708411850839,-500.0,0.00036438,2]
[314540673,1708411850848,-500.0,0.00036438,2]
[314540674,1708411850859,-503.91874221,0.00036438,2]
[314540675,1708411850868,-500.0,0.00036438,2]
[314540676,1708411850878,-500.0,0.00036438,2]
[314540677,1708411850888,-500.0,0.00036438,2]
[314540678,1708411850897,-500.0,0.00036438,2]
[314540679,1708411850907,-340.75809442,0.00036438,2]
[314540680,1708411850916,-500.0,0.00036438,2]
[314540681,1708411850926,-500.0,0.00036438,2]
[314540682,1708411850935,-500.0,0.00036438,2]
[314540683,1708411850945,-500.0,0.00036438,2]
[314540684,1708411850955,-500.0,0.00036438,2]
[314540685,1708411850965,-500.0,0.00036438,2]
[314540686,1708411850974,-500.0,0.00036438,2]
[314540687,1708411850983,-500.0,0.00036438,2]
[314540688,1708411850993,-500.0,0.00036438,2]
[314540689,1708411851002,-500.0,0.00036438,2]
[314540690,1708411851012,-500.0,0.00036438,2]
[314540691,1708411851022,-500.0,0.00036438,2]
[314540692,1708411851031,-500.0,0.00036438,2]
[314540693,1708411851040,-500.0,0.00036438,2]
[314540694,1708411851049,-500.0,0.00036438,2]
[314540695,1708411851059,-500.0,0.00036438,2]
[314540696,1708411851068,-500.0,0.00036438,2]
[314540697,1708411851077,-500.0,0.00036438,2]
[314540698,1708411851087,-500.0,0.00036438,2]
[314540699,1708411851097,-500.0,0.00036438,2]
[314540700,1708411851107,-500.0,0.00036438,2]
[314540701,1708411851116,-500.0,0.00036438,2]
[314540702,1708411851125,-500.0,0.00036438,2]
[314540703,1708411851135,-500.0,0.00036438,2]
[314540704,1708411851145,-500.0,0.00036438,2]
[314540705,1708411851154,-500.0,0.00036438,2]
[314540706,1708411851164,-500.0,0.00036438,2]
[314540707,1708411851175,-500.0,0.00036438,2]
[314540708,1708411851185,-500.0,0.00036438,2]
[314540709,1708411851196,-500.0,0.00036438,2]
[314540710,1708411851205,-500.0,0.00036438,2]
[314540711,1708411851215,-500.0,0.00036438,2]
[314540712,1708411851225,-500.0,0.00036438,2]
[314540713,1708411851235,-500.0,0.00036438,2]
[314540714,1708411851244,-500.0,0.00036438,2]
[314540715,1708411851254,-500.0,0.00036438,2]
[314540716,1708411851264,-500.0,0.00036438,2]
[314540717,1708411851274,-500.0,0.00036438,2]
[314540718,1708411851283,-500.0,0.00036438,2]
[314540719,1708411851293,-500.0,0.00036438,2]
[314540720,1708411851303,-646.6200857,0.00036438,2]
[314540721,1708411851312,-150.0,0.00036438,2]
[314540722,1708411851322,-500.0,0.00036438,2]
[314540723,1708411851332,-500.0,0.00036438,2]
[314540724,1708411851341,-500.0,0.00036438,2]
[314540725,1708411851352,-500.0,0.00036438,2]
[314540726,1708411851361,-500.0,0.00036438,2]
[314540727,1708411851372,-500.0,0.00036438,2]
[314540728,1708411851382,-524.26,0.00036438,2]
[314540729,1708411851391,-500.0,0.00036438,2]
[314540730,1708411851401,-500.0,0.00036438,2]
[314540731,1708411851411,-500.0,0.00036438,2]
[314540732,1708411851420,-500.0,0.00036438,2]
[314540733,1708411851430,-500.0,0.00036438,2]
[314540734,1708411851439,-500.0,0.00036438,2]
[314540735,1708411851449,-500.0,0.00036438,2]
[314540736,1708411851458,-500.0,0.00036438,2]
[314540737,1708411851468,-235.66812718,0.00036438,2]
[314540738,1708411851477,-500.0,0.00036438,2]
[314540739,1708411851486,-500.0,0.00036438,2]
[314540740,1708411851496,-500.0,0.00036438,2]
[314540741,1708411851505,-500.0,0.00036438,2]
[314540742,1708411851515,-500.0,0.00036438,2]
[314540743,1708411851525,-500.0,0.00036438,2]
[314540744,1708411851535,-500.0,0.00036438,2]
[314540745,1708411851544,-500.0,0.00036438,2]
[314540746,1708411851554,-500.0,0.00036438,2]
[314540747,1708411851563,-500.0,0.00036438,2]
[314540748,1708411851573,-500.0,0.00036438,2]
[314540749,1708411851587,-500.0,0.00036438,2]
[314540750,1708411851598,-500.0,0.00036438,2]
[314540751,1708411851608,-500.0,0.00036438,2]
[314540752,1708411851618,-500.0,0.00036438,2]
[314540753,1708411851630,-500.0,0.00036438,2]
[314540754,1708411851641,-578.31,0.00036438,2]
[314540755,1708411851651,-500.0,0.00036438,2]
[314540756,1708411851661,-500.0,0.00036438,2]
[314540757,1708411851673,-500.0,0.00036438,2]
[314540758,1708411851684,-500.0,0.00036438,2]
[314540759,1708411851696,-500.0,0.00036438,2]
[314540760,1708411851707,-500.0,0.00036438,2]
[314540761,1708411851719,-502.74,0.00036438,2]
[314540762,1708411851729,-500.0,0.00036438,2]
[314540763,1708411851740,-500.0,0.00036438,2]
[314540764,1708411851750,-550.63,0.00036438,2]
[314540765,1708411851760,-500.0,0.00036438,2]
[314540766,1708411851772,-500.0,0.00036438,2]
[314540767,1708411851782,-500.0,0.00036438,2]
[314540768,1708411851794,-287.55679148,0.00036438,2]
[314540769,1708411851804,-500.0,0.00036438,2]
[314540770,1708411851814,-500.0,0.00036438,2]
[314540771,1708411851825,-553.15,0.00036438,2]
[314540772,1708411851835,-500.0,0.00036438,2]
[314540773,1708411851845,-500.0,0.00036438,2]
[314540774,1708411851856,-500.0,0.00036438,2]
[314540775,1708411851865,-500.0,0.00036438,2]
[314540776,1708411851876,-886.81,0.00036438,2]
[314540777,1708411851886,-500.0,0.00036438,2]
[314540778,1708411851896,-500.0,0.00036438,2]
[314540779,1708411851906,-500.0,0.00036438,2]
[314540780,1708411851915,-500.0,0.00036438,2]
[314540781,1708411851925,-598.79,0.00036438,2]
[314540782,1708411851935,-500.0,0.00036438,2]
[314540783,1708411851945,-707.49,0.00036438,2]
[314540784,1708411851954,-500.0,0.00036438,2]
[314540785,1708411851965,-989.24,0.00036438,2]
[314540786,1708411851974,-500.0,0.00036438,2]
[314540787,1708411851984,-500.0,0.00036438,2]
[314540788,1708411851994,-1154.02,0.00036438,2]
[314540789,1708411852004,-1017.36,0.00036438,2]
[314540790,1708411852018,-500.0,0.00036438,2]
[314540791,1708411852028,-500.0,0.00036438,2]
[314540792,1708411852038,-500.0,0.00036438,2]
[314540793,1708411852048,-654.91,0.00036438,2]
[314540794,1708411852058,-500.0,0.00036438,2]
[314540795,1708411852068,-500.0,0.00036438,2]
[314540796,1708411852079,-1183.27,0.00036438,2]
[314540797,1708411852089,-668.7,0.00036438,2]
[314540798,1708411852099,-500.0,0.00036438,2]
[314540799,1708411852108,-670.28,0.00036438,2]
[314540800,1708411852118,-1301.3,0.00036438,2]
[314540801,1708411852128,-500.0,0.00036438,2]
[314540802,1708411852138,-500.0,0.00036438,2]
[314540803,1708411852148,-500.0,0.00036438,2]
[314540804,1708411852158,-2677.57,0.00036438,2]
[314540805,1708411852168,-1260.22,0.00036438,2]
[314540806,1708411852179,-500.0,0.00036438,2]
[314540807,1708411852189,-807.43,0.00036438,2]
[314540808,1708411852199,-500.0,0.00036438,2]
[314540809,1708411852411,-650.92,0.00036438,2]
[314540810,1708411852422,-628.34355249,0.00036438,2]
[314540811,1708411852432,-1557.17,0.00036438,2]
[314540812,1708411852441,-500.0,0.00036438,2]
[314540813,1708411852450,-1101.28,0.00036438,2]
[314540814,1708411852460,-500.0,0.00036438,2]
[314540815,1708411852469,-500.0,0.00036438,2]
[314540816,1708411852479,-1147.15,0.00036438,2]
[314540817,1708411852488,-500.0,0.00036438,2]
[314540818,1708411852497,-3126.82,0.00036438,2]
[314540819,1708411852507,-500.0,0.00036438,2]
[314540820,1708411852516,-984.85,0.00036438,2]
[314540821,1708411852526,-500.0,0.00036438,2]
[314540822,1708411852536,-610.56,0.00036438,2]
[314540823,1708411852545,-500.0,0.00036438,2]
[314540824,1708411852554,-500.0,0.00036438,2]
[314540825,1708411852564,-500.0,0.00036438,2]
[314540826,1708411852574,-500.0,0.00036438,2]
[314540827,1708411852583,-1070.76,0.00036438,2]
[314540828,1708411852592,-1065.82,0.00036438,2]
[314540829,1708411852601,-500.0,0.00036438,2]
[314540830,1708411852610,-500.0,0.00036438,2]
[314540831,1708411852620,-883.93,0.00036438,2]
[314540832,1708411852629,-1548.6,0.00036438,2]
[314540833,1708411852638,-500.0,0.00036438,2]
[314540834,1708411852647,-500.0,0.00036438,2]
[314540835,1708411852656,-1069.75,0.00036438,2]
[314540836,1708411852665,-500.0,0.00036438,2]
[314540837,1708411852674,-500.0,0.00036438,2]
[314540838,1708411852684,-14843.7,0.00036438,2]
[314540839,1708411852693,-500.0,0.00036438,2]
[314540840,1708411852702,-6156.03,0.00036438,2]
[314540841,1708411852711,-500.0,0.00036438,2]
[314540842,1708411852721,-607.53,0.00036438,2]
[314540843,1708411852730,-810.41,0.00036438,2]
[314540844,1708411852740,-2045.71,0.00036438,2]
[314540845,1708411852749,-500.0,0.00036438,2]
[314540846,1708411852758,-322.30148978,0.00036438,2]
[314540847,1708411852769,-729.45,0.00036438,2]
[314540848,1708411852778,-500.0,0.00036438,2]
[314540849,1708411852791,-1283.56,0.00036438,2]
[314540850,1708411852801,-500.0,0.00036438,2]
[314540851,1708411852810,-715.74,0.00036438,2]
[314540852,1708411852820,-500.0,0.00036438,2]
[314540853,1708411852830,-2005.96,0.00036438,2]
[314540854,1708411852840,-500.0,0.00036438,2]
[314540855,1708411852850,-500.0,0.00036438,2]
[314540856,1708411852859,-500.0,0.00036438,2]
[314540857,1708411852869,-500.0,0.00036438,2]
[314540858,1708411852878,-788.97,0.00036438,2]
[314540859,1708411852888,-1018.12,0.00036438,2]
[314540860,1708411852897,-707.86,0.00036438,2]
[314540861,1708411852907,-536.07,0.00036438,2]
[314540862,1708411852916,-165.54639745,0.00036438,2]
[314540863,1708411852925,-500.0,0.00036438,2]
[314540864,1708411852935,-500.0,0.00036438,2]
[314540865,1708411852944,-500.69,0.00036438,2]
[314540866,1708411852954,-500.0,0.00036438,2]
[314540867,1708411852964,-1154.99,0.00036438,2]
[314540868,1708411852973,-877.31,0.00036438,2]
[314540869,1708411852983,-500.0,0.00036438,2]
[314540870,1708411852992,-643.38,0.00036438,2]
[314540871,1708411853002,-500.0,0.00036438,2]
[314540872,1708411853012,-500.0,0.00036438,2]
[314540873,1708411853021,-500.0,0.00036438,2]
[314540874,1708411853030,-2929.78,0.00036438,2]
[314540875,1708411853040,-500.0,0.00036438,2]
[314540876,1708411853049,-500.0,0.00036438,2]
[314540877,1708411853059,-500.0,0.00036438,2]
[314540878,1708411853069,-4536.19,0.00036438,2]
[314540879,1708411853078,-553.45,0.00036438,2]
[314540880,1708411853089,-775.81,0.00036438,2]
[314540881,1708411853098,-726.1,0.00036438,2]
[314540882,1708411853107,-500.0,0.00036438,2]
[314540883,1708411853116,-697.95,0.00036438,2]
[314540884,1708411853126,-500.0,0.00036438,2]
[314540885,1708411853135,-500.0,0.00036438,2]
[314540886,1708411853145,-848.02,0.00036438,2]
[314540887,1708411853154,-500.0,0.00036438,2]
[314540888,1708411853164,-500.0,0.00036438,2]
[314540889,1708411853173,-500.0,0.00036438,2]
[314540890,1708411853182,-609.53,0.00036438,2]
[314540891,1708411853192,-500.0,0.00036438,2]
[314540892,1708411853201,-837.07,0.00036438,2]
[314540893,1708411853211,-1327.38,0.00036438,2]
[314540894,1708411853221,-2344.43,0.00036438,2]
[314540895,1708411853231,-500.0,0.00036438,2]
[314540896,1708411853241,-1275.23,0.00036438,2]
[314540897,1708411853250,-2000.27,0.00036438,2]
[314540898,1708411853259,-2289.28,0.00036438,2]
[314540899,1708411853268,-611.02,0.00036438,2]
[314540900,1708411853278,-500.0,0.00036438,2]
[314540901,1708411853287,-753.08,0.00036438,2]
[314540902,1708411853296,-500.0,0.00036438,2]
[314540903,1708411853306,-630.26,0.00036438,2]
[314540904,1708411853315,-500.0,0.00036438,2]
[314540905,1708411853324,-610.78,0.00036438,2]
[314540906,1708411853333,-705.71,0.00036438,2]
[314540907,1708411853344,-842.04,0.00036438,2]
[314540908,1708411853353,-2532.64,0.00036438,2]
[314540909,1708411853362,-500.0,0.00036438,2]
[314540910,1708411853372,-500.0,0.00036438,2]
[314540911,1708411853382,-716.77,0.00036438,2]
[314540912,1708411853391,-205.39,0.00036438,2]
[314540913,1708411853401,-500.0,0.00036438,2]
[314540914,1708411853410,-500.0,0.00036438,2]
[314540915,1708411853419,-1124.22,0.00036438,2]
[314540916,1708411853428,-500.0,0.00036438,2]
[314540917,1708411853438,-1012.88,0.00036438,2]
[314540918,1708411853447,-970.85,0.00036438,2]
[314540919,1708411853456,-1716.19,0.00036438,2]
[314540920,1708411853466,-539.7488945,0.00036438,2]
[314540921,1708411853475,-500.0,0.00036438,2]
[314540922,1708411853484,-500.0,0.00036438,2]
[314540923,1708411853494,-554.30433805,0.00036438,2]
[314540924,1708411853503,-500.0,0.00036438,2]
[314540925,1708411853513,-691.21,0.00036438,2]
[314540926,1708411853522,-2284.06,0.00036438,2]
[314540927,1708411853531,-1159.36,0.00036438,2]
[314540928,1708411853541,-500.0,0.00036438,2]
[314540929,1708411853550,-712.39,0.00036438,2]
[314540930,1708411853559,-816.59,0.00036438,2]
[314540931,1708411853568,-500.0,0.00036438,2]
[314540932,1708411853578,-817.0,0.00036438,2]
[314540933,1708411853587,-500.0,0.00036438,2]
[314540934,1708411853597,-1377.68,0.00036438,2]
[314540935,1708411853606,-489.39,0.00036438,2]
[314540936,1708411853615,-500.0,0.00036438,2]
[314540937,1708411853625,-500.0,0.00036438,2]
[314540938,1708411853635,-698.35,0.00036438,2]
[314540939,1708411853644,-500.0,0.00036438,2]
[314540940,1708411853653,-500.0,0.00036438,2]
[314540941,1708411853662,-843.78,0.00036438,2]
[314540942,1708411853672,-796.0,0.00036438,2]
[314540943,1708411853681,-663.83,0.00036438,2]
[314540944,1708411853691,-500.0,0.00036438,2]
[314540945,1708411853700,-3676.53,0.00036438,2]
[314540946,1708411853709,-500.0,0.00036438,2]
[314540947,1708411853718,-500.0,0.00036438,2]
[314540948,1708411853728,-500.0,0.00036438,2]
[314540949,1708411853737,-500.0,0.00036438,2]
[314540950,1708411853746,-500.0,0.00036438,2]
[314540951,1708411853756,-1883.21,0.00036438,2]
[314540952,1708411853765,-5824.02,0.00036438,2]
[314540953,1708411853775,-500.0,0.00036438,2]
[314540954,1708411853786,-500.0,0.00036438,2]
[314540955,1708411853795,-597.18,0.00036438,2]
[314540956,1708411853805,-807.52,0.00036438,2]
[314540957,1708411853814,-1102.3,0.00036438,2]
[314540958,1708411853824,-500.0,0.00036438,2]
[314540959,1708411853833,-500.0,0.00036438,2]
[314540960,1708411853844,-500.0,0.00036438,2]
[314540961,1708411853854,-501.22,0.00036438,2]
[314540962,1708411853864,-500.0,0.00036438,2]
[314540963,1708411853874,-566.92,0.00036438,2]
[314540964,1708411853885,-500.0,0.00036438,2]
[314540965,1708411853896,-500.0,0.00036438,2]
[314540966,1708411853905,-500.0,0.00036438,2]
[314540967,1708411853915,-1224.12,0.00036438,2]
[314540968,1708411853924,-500.0,0.00036438,2]
[314540969,1708411853933,-2546.25,0.00036438,2]
[314540970,1708411853943,-560.59,0.00036438,2]
[314540971,1708411853952,-500.0,0.00036438,2]
[314540972,1708411853963,-500.0,0.00036438,2]
[314540973,1708411853972,-500.0,0.00036438,2]
[314540974,1708411853982,-500.0,0.00036438,2]
[314540975,1708411853991,-610.57,0.00036438,2]
[314540976,1708411854001,-500.0,0.00036438,2]
[314540977,1708411854010,-500.0,0.00036438,2]
[314540978,1708411854019,-500.0,0.00036438,2]
[314540979,1708411854028,-500.0,0.00036438,2]
[314540980,1708411854038,-589.71,0.00036438,2]
[314540981,1708411854046,-1085.54,0.00036438,2]
[314540982,1708411854056,-500.0,0.00036438,2]
[314540983,1708411854065,-1251.58,0.00036438,2]
[314540984,1708411854075,-500.0,0.00036438,2]
[314540985,1708411854084,-2584.84,0.00036438,2]
[314540986,1708411854094,-795.38,0.00036438,2]
[314540987,1708411854103,-4519.14,0.00036438,2]
[314540988,1708411854112,-500.0,0.00036438,2]
[314540989,1708411854122,-667.47,0.00036438,2]
[314540990,1708411854131,-500.0,0.00036438,2]
[314540991,1708411854141,-500.0,0.00036438,2]
[314540992,1708411854150,-577.37,0.00036438,2]
[314540993,1708411854158,-1099.0,0.00036438,2]
[314540994,1708411854168,-391.39578374,0.00036438,2]
[314540995,1708411854177,-500.0,0.00036438,2]
[314540996,1708411854187,-500.0,0.00036438,2]
[314540997,1708411854196,-500.0,0.00036438,2]
[314540998,1708411854205,-878.48,0.00036438,2]
[314540999,1708411854214,-500.0,0.00036438,2]
[314541000,1708411854225,-500.0,0.00036438,2]
[314541001,1708411854234,-1117.3,0.00036438,2]
[314541002,1708411854243,-500.0,0.00036438,2]
[314541003,1708411854252,-540.14,0.00036438,2]
[314541004,1708411854262,-500.0,0.00036438,2]
[314541005,1708411854271,-500.0,0.00036438,2]
[314541006,1708411854281,-500.0,0.00036438,2]
[314541007,1708411854290,-500.0,0.00036438,2]
[314541008,1708411854299,-500.0,0.00036438,2]
[314541009,1708411854308,-500.0,0.00036438,2]
[314541010,1708411854317,-500.0,0.00036438,2]
[314541011,1708411854326,-500.0,0.00036438,2]
[314541012,1708411854335,-420.0,0.00036438,2]
[314541013,1708411854345,-159.41,0.00036456,2]
[314541014,1708411854354,-151.0212031,0.00036498,13]
[314541015,1708411854363,-200.0,0.0003652,2]
[314541016,1708411854372,-2000.0,0.0003652,2]
[314541017,1708411854382,-200.0,0.0003652,2]
[314541018,1708411854391,-3159.84971319,0.00036558,9]
[314541019,1708411854400,-150.0,0.00036629,2]
[314541020,1708411854409,-150.0,0.00036633,2]
[314541021,1708411854418,-861.05927089,0.00036651,27]
[314541022,1708411854427,-544.31679834,0.00036712,2]
[314541023,1708411854436,-500.0,0.00036712,2]
[314541024,1708411854445,-500.0,0.00036712,2]
[314541025,1708411854454,-500.0,0.00036712,2]
[314541026,1708411854463,-500.0,0.00036712,2]
[314541027,1708411854472,-500.0,0.00036712,2]
[314541028,1708411854481,-440.84369884,0.00036712,2]
[314541029,1708411854491,-500.0,0.00036712,2]
[314541030,1708411854500,-500.0,0.00036712,2]
[314541031,1708411854510,-500.0,0.00036712,2]
[314541032,1708411854519,-500.0,0.00036712,2]
[314541033,1708411854528,-172.82111695,0.00036712,2]
[314541034,1708411854538,-500.0,0.00036712,2]
[314541035,1708411854547,-500.0,0.00036712,2]
[314541036,1708411854556,-500.0,0.00036712,2]
[314541037,1708411854565,-500.0,0.00036712,2]
[314541038,1708411854574,-500.0,0.00036712,2]
[314541039,1708411854584,-500.0,0.00036712,2]
[314541040,1708411854593,-633.47646303,0.00036712,2]
[314541041,1708411854602,-500.0,0.00036712,2]
[314541042,1708411854611,-500.0,0.00036712,2]
[314541043,1708411854620,-500.0,0.00036712,2]
[314541044,1708411854630,-500.0,0.00036712,2]
[314541045,1708411854703,-500.0,0.00036712,2]
[314541046,1708411854712,-247.25073021,0.00036712,2]
[314541047,1708411854721,-500.0,0.00036712,2]
[314541048,1708411854730,-500.0,0.00036712,2]
[314541049,1708411854739,-500.0,0.00036712,2]
[314541050,1708411854748,-500.0,0.00036712,2]
[314541051,1708411854757,-500.0,0.00036712,2]
[314541052,1708411854768,-1022.84,0.00036712,2]
[314541053,1708411854777,-500.0,0.00036712,2]
[314541054,1708411854790,-500.0,0.00036712,2]
[314541055,1708411854799,-500.0,0.00036712,2]
[314541056,1708411854809,-500.0,0.00036712,2]
[314541057,1708411854818,-500.0,0.00036712,2]
[314541058,1708411854827,-500.0,0.00036712,2]
[314541059,1708411854838,-500.0,0.00036712,2]
[314541060,1708411854847,-500.0,0.00036712,2]
[314541061,1708411854858,-500.0,0.00036712,2]
[314541062,1708411854867,-500.0,0.00036712,2]
[314541063,1708411854876,-500.0,0.00036712,2]
[314541064,1708411854885,-214.29882515,0.00036712,2]
[314541065,1708411854894,-500.0,0.00036712,2]
[314541066,1708411854904,-587.77983829,0.00036712,2]
[314541067,1708411854913,-500.0,0.00036712,2]
[314541068,1708411854922,-500.0,0.00036712,2]
[314541069,1708411854932,-548.6,0.00036712,2]
[314541070,1708411854941,-500.0,0.00036712,2]
[314541071,1708411854950,-500.0,0.00036712,2]
[314541072,1708411854959,-500.0,0.00036712,2]
[314541073,1708411854969,-500.0,0.00036712,2]
[314541074,1708411854978,-500.0,0.00036712,2]
[314541075,1708411854988,-500.0,0.00036712,2]
[314541076,1708411854997,-500.0,0.00036712,2]
[314541077,1708411855006,-500.0,0.00036712,2]
[314541078,1708411855015,-500.0,0.00036712,2]
[314541079,1708411855025,-500.0,0.00036712,2]
[314541080,1708411855034,-500.0,0.00036712,2]
[314541081,1708411855043,-500.0,0.00036712,2]
[314541082,1708411855053,-500.0,0.00036712,2]
[314541083,1708411855063,-500.0,0.00036712,2]
[314541084,1708411855073,-500.0,0.00036712,2]
[314541085,1708411855082,-500.0,0.00036712,2]
[314541086,1708411855092,-500.0,0.00036712,2]
[314541087,1708411855102,-500.0,0.00036712,2]
[314541088,1708411855111,-500.0,0.00036712,2]
[314541089,1708411855122,-500.0,0.00036712,2]
[314541090,1708411855132,-500.0,0.00036712,2]
[314541091,1708411855142,-500.0,0.00036712,2]
[314541092,1708411855152,-500.0,0.00036712,2]
[314541093,1708411855162,-500.0,0.00036712,2]
[314541094,1708411855173,-500.0,0.00036712,2]
[314541095,1708411855184,-500.0,0.00036712,2]
[314541096,1708411855192,-500.0,0.00036712,2]
[314541097,1708411855201,-500.0,0.00036712,2]
[314541098,1708411855211,-500.0,0.00036712,2]
[314541099,1708411855220,-500.0,0.00036712,2]
[314541100,1708411855230,-500.0,0.00036712,2]
[314541101,1708411855239,-500.0,0.00036712,2]
[314541102,1708411855249,-500.0,0.00036712,2]
[314541103,1708411855259,-500.0,0.00036712,2]
[314541104,1708411855268,-500.0,0.00036712,2]
[314541105,1708411855277,-500.0,0.00036712,2]
[314541106,1708411855286,-500.0,0.00036712,2]
[314541107,1708411855295,-500.0,0.00036712,2]
[314541108,1708411855305,-500.0,0.00036712,2]
[314541109,1708411855314,-500.0,0.00036712,2]
[314541110,1708411855323,-500.0,0.00036712,2]
[314541111,1708411855332,-256.85710472,0.00036712,2]
[314541112,1708411855342,-500.0,0.00036712,2]
[314541113,1708411855351,-538.38253531,0.00036712,2]
[314541114,1708411855360,-500.0,0.00036712,2]
[314541115,1708411855370,-500.0,0.00036712,2]
[314541116,1708411855379,-500.0,0.00036712,2]
[314541117,1708411855389,-500.0,0.00036712,2]
[314541118,1708411855398,-500.0,0.00036712,2]
[314541119,1708411855408,-500.0,0.00036712,2]
[314541120,1708411855418,-150.0,0.00036712,2]
[314541121,1708411855427,-500.0,0.00036712,2]
[314541122,1708411855437,-500.0,0.00036712,2]
[314541123,1708411855447,-500.0,0.00036712,2]
[314541124,1708411855457,-500.0,0.00036712,2]
[314541125,1708411855466,-500.0,0.00036712,2]
[314541126,1708411855475,-500.0,0.00036712,2]
[314541127,1708411855485,-524.26,0.00036712,2]
[314541128,1708411855494,-500.0,0.00036712,2]
[314541129,1708411855504,-500.0,0.00036712,2]
[314541130,1708411855513,-500.0,0.00036712,2]
[314541131,1708411855523,-500.0,0.00036712,2]
[314541132,1708411855533,-500.0,0.00036712,2]
[314541133,1708411855542,-500.0,0.00036712,2]
[314541134,1708411855552,-500.0,0.00036712,2]
[314541135,1708411855561,-500.0,0.00036712,2]
[314541136,1708411855571,-500.0,0.00036712,2]
[314541137,1708411855581,-500.0,0.00036712,2]
[314541138,1708411855591,-500.0,0.00036712,2]
[314541139,1708411855601,-500.0,0.00036712,2]
[314541140,1708411855610,-500.0,0.00036712,2]
[314541141,1708411855620,-500.0,0.00036712,2]
[314541142,1708411855630,-591.53254458,0.00036712,2]
[314541143,1708411855640,-500.0,0.00036712,2]
[314541144,1708411855650,-500.0,0.00036712,2]
[314541145,1708411855659,-500.0,0.00036712,2]
[314541146,1708411855669,-500.0,0.00036712,2]
[314541147,1708411855679,-500.0,0.00036712,2]
[314541148,1708411855689,-500.0,0.00036712,2]
[314541149,1708411855699,-500.0,0.00036712,2]
[314541150,1708411855709,-175.69024569,0.00036712,2]
[314541151,1708411855719,-500.0,0.00036712,2]
[314541152,1708411855730,-578.31,0.00036712,2]